bitfinex/quotes_ETHUSD_20240621
["timestamp","ask_amount","ask_price","bid_price","bid_amount"]
[1718972993026,0.05635698,3495.8,3495.1,0.87791755]
[1718972995146,1.77177182,3495.7,3495.1,0.87791755]
[1718972995332,0.05635698,3495.6,3494.8,7.45207547]
[1718972995756,0.05635698,3495.8,3494.8,7.45207547]
[1718972996163,1.77179009,3495.7,3494.8,7.45207547]
[1718972996340,0.05635698,3495.6,3494.9,0.74520755]
[1718972996734,0.05635698,3495.8,3494.9,0.74520755]
[1718972996991,1.77180451,3495.7,3494.9,0.74520755]
[1718972997127,0.05635698,3495.6,3494.9,0.74520755]
[1718972997566,2.4099,3495.9,3495.0,0.59172412]
[1718972997567,0.05635698,3495.8,3495.0,0.59172412]
[1718972997769,1.77186159,3495.7,3495.0,0.59172412]
[1718972997928,0.05635698,3495.6,3495.0,0.59172412]
[1718972998329,0.05635698,3495.8,3495.0,0.59172412]
[1718972998534,1.77188889,3495.7,3495.0,0.59172412]
[1718972998734,0.05635698,3495.6,3495.0,0.59172412]
[1718972999031,0.05635698,3495.6,3495.1,0.60720286]
[1718972999247,0.05635698,3495.8,3495.1,0.60720286]
[1718972999578,1.77208014,3495.7,3495.1,0.60720286]
[1718972999744,0.05635698,3495.6,3495.1,0.60720286]
[1718973000140,0.05635698,3495.8,3495.1,0.60720286]
[1718973000585,4.2726,3496.9,3495.1,2.33220286]
[1718973000804,1.82875269,3496.8,3495.3,5.72707547]
[1718973000976,1.82875269,3496.7,3495.3,5.72707547]
[1718973001158,1.77239571,3496.6,3495.3,5.72707547]
[1718973001362,0.05635698,3496.5,3495.4,0.8578011]
[1718973001677,1.77251223,3496.4,3495.4,0.8578011]
[1718973002018,3.0,3496.8,3495.4,2.64001216]
[1718973002305,1.82889603,3496.7,3495.4,2.64001216]
[1718973002473,1.82889603,3496.7,3495.7,2.3497]
[1718973002474,1.77253905,3496.6,3495.7,2.3497]
[1718973002684,2.2586,3496.9,3495.7,2.3497]
[1718973002685,2.2586,3496.9,3495.8,1.78220383]
[1718973003001,1.77280594,3496.8,3495.8,4.78220383]
[1718973003314,0.1209115,3497.1,3496.0,1.725]
[1718973003598,1.77280911,3497.0,3496.1,0.05719642]
[1718973003979,0.05635698,3496.9,3496.0,4.725]
[1718973004156,1.77260212,3496.8,3496.1,0.80021904]
[1718973004361,0.1209115,3497.1,3496.1,0.80021904]
[1718973004362,0.1209115,3497.1,3496.1,3.80021904]
[1718973004602,1.82901815,3497.0,3496.1,3.80021904]
[1718973004902,0.1209115,3497.1,3496.2,0.6075219]
[1718973005106,1.77272119,3497.0,3496.2,0.6075219]
[1718973005273,0.1209115,3497.1,3496.2,0.6075219]
[1718973005471,0.1209115,3497.1,3496.3,1.725]
[1718973005774,0.1209115,3497.1,3496.4,0.23325219]
[1718973006166,0.1209115,3497.1,3496.5,0.01772726]
[1718973006995,0.1209115,3497.1,3496.4,1.95825219]
[1718973007198,0.1209115,3497.1,3496.4,0.23325219]
[1718973007372,0.1209115,3497.1,3496.2,0.6075219]
[1718973007373,0.1209115,3497.1,3496.2,3.6075219]
[1718973007568,0.1209115,3497.1,3496.2,0.6075219]
[1718973008004,0.1209115,3497.1,3496.2,2.3325219]
[1718973008180,0.1209115,3497.1,3496.5,2.4848]
[1718973008377,0.1209115,3497.1,3496.5,5.4848]
[1718973008584,0.1209115,3497.1,3496.7,1.725]
[1718973011014,0.1209115,3497.1,3496.9,1.725]
[1718973011321,0.1209115,3497.1,3497.0,4.1641]
[1718973011603,0.1209115,3497.1,3497.0,4.7141]
[1718973011811,0.1209115,3497.1,3497.0,8.38691]
[1718973013427,0.1209115,3497.1,3497.0,10.67458]
[1718973013581,0.1209115,3497.1,3497.0,8.38691]
[1718973014111,0.1209115,3497.1,3497.0,10.67458]
[1718973014609,0.06235698,3498.7,3497.0,10.67458]
[1718973014610,0.006,3498.7,3497.8,1.725]
[1718973014828,0.006,3498.7,3498.2,1.725]
[1718973014981,0.006,3498.7,3498.3,0.05715847]
[1718973015716,0.006,3498.7,3498.5,1.725]
[1718973015935,0.006,3498.7,3498.6,2.5025]
[1718973016281,0.006,3498.7,3498.6,1.9525]
[1718973016476,0.006,3498.7,3497.8,3.0]
[1718973016713,0.006,3498.7,3497.2,5.2963]
[1718973016918,0.06235698,3498.7,3497.2,3.0]
[1718973017081,0.06235698,3498.7,3497.3,0.367281]
[1718973017082,2.31310268,3498.7,3497.3,0.367281]
[1718973017285,2.31310268,3498.7,3496.8,3.0]
[1718973017486,2.31310268,3498.7,3496.8,1.72]
[1718973018099,2.31310268,3498.7,3496.4,4.874]
[1718973018100,2.014,3497.9,3496.5,1.72]
[1718973018440,2.3561,3497.7,3495.7,1.72]
[1718973018592,0.05635698,3497.6,3495.7,1.72]
[1718973018791,0.05635698,3497.6,3495.9,1.72]
[1718973018987,0.05635698,3497.6,3495.4,0.2867]
[1718973018988,2.014,3497.3,3495.7,3.0]
[1718973019222,2.3561,3496.8,3494.6,3.0]
[1718973019432,0.05635698,3496.7,3494.8,1.72]
[1718973019930,0.05635698,3496.7,3494.9,1.72]
[1718973020336,0.05635698,3496.7,3494.3,2.6217]
[1718973020337,2.014,3496.1,3494.3,2.6217]
[1718973020493,0.25775698,3496.0,3494.4,1.98217]
[1718973021439,0.25775698,3496.0,3494.4,0.26217]
[1718973021596,4.9912,3495.9,3494.4,0.26217]
[1718973021796,0.05635698,3495.8,3494.2,1.72]
[1718973022007,0.05635698,3495.7,3494.2,1.72]
[1718973022191,0.05635698,3495.7,3494.1,3.0]
[1718973022507,0.05635698,3495.7,3494.2,1.72]
[1718973022695,0.05635698,3495.7,3494.3,0.758]
[1718973023294,0.05635698,3495.7,3494.1,3.0]
[1718973023525,0.05635698,3495.7,3493.6,2.3923]
[1718973023824,0.05635698,3495.7,3493.7,1.72]
[1718973024028,0.05635698,3495.7,3493.7,4.72]
[1718973024511,0.05635698,3495.7,3493.8,2.28976]
[1718973024698,0.05635698,3495.7,3493.9,2.660206]
[1718973024916,2.96256705,3497.3,3494.3,1.72]
[1718973024917,2.3122,3496.5,3494.3,1.72]
[1718973025094,0.05635698,3496.4,3494.5,1.72]
[1718973025597,0.05635698,3496.4,3494.4,0.40095]
[1718973025598,0.05635698,3496.4,3494.7,1.72]
[1718973025821,0.05635698,3496.4,3494.9,1.72]
[1718973026814,0.05635698,3496.4,3495.0,1.72]
[1718973027150,0.05635698,3496.4,3495.1,0.172]
[1718973027327,0.05635698,3496.4,3495.2,0.05721387]
[1718973027694,0.05635698,3496.4,3495.1,0.172]
[1718973028013,0.05635698,3496.4,3494.8,1.72]
[1718973028212,0.05635698,3496.4,3494.0,3.0]
[1718973028543,0.05635698,3496.4,3494.5,0.55]
[1718973028705,0.05635698,3496.4,3494.6,1.72]
[1718973029248,0.05635698,3496.4,3494.8,1.72]
[1718973029537,0.05635698,3496.4,3495.0,1.72]
[1718973029837,0.05635698,3496.4,3495.2,1.72]
[1718973030218,2.4577,3498.1,3495.4,1.72]
[1718973030549,2.4577,3498.1,3494.9,3.0]
[1718973030550,2.4577,3497.4,3495.6,1.72]
[1718973030850,0.05635698,3497.3,3495.6,1.72]
[1718973031019,0.05635698,3497.2,3495.6,1.72]
[1718973031547,0.05635698,3497.2,3495.0,1.72]
[1718973031853,0.05635698,3497.2,3494.9,3.0]
[1718973031854,0.05635698,3497.2,3495.2,1.72]
[1718973032005,0.05635698,3497.2,3495.2,4.72]
[1718973033509,0.05635698,3497.2,3495.4,1.72]
[1718973033835,0.05635698,3497.2,3495.6,1.72]
[1718973034024,0.05635698,3497.2,3495.8,1.72]
[1718973034344,0.30776268,3497.2,3495.9,0.227]
[1718973034549,0.30776268,3497.2,3495.2,3.0]
[1718973034550,2.678,3497.1,3495.2,3.0]
[1718973034789,2.678,3496.6,3495.1,0.942794]
[1718973034898,2.678,3496.6,3494.6,3.0]
[1718973034899,3.05635698,3496.5,3494.6,3.0]
[1718973035105,3.05635698,3496.5,3494.7,0.586]
[1718973035434,2.3158,3496.4,3494.5,2.86]
[1718973035641,2.678,3496.1,3493.9,0.940206]
[1718973035953,2.3158,3495.5,3493.3,1.146737]
[1718973036115,0.05635698,3495.4,3493.3,1.146737]
[1718973036316,0.05635698,3495.4,3493.0,4.76418]
[1718973036628,0.05635698,3495.4,3493.2,4.01016]
[1718973036842,0.05635698,3495.4,3493.2,1.72]
[1718973037202,0.05635698,3495.4,3493.2,4.72]
[1718973037911,0.05635698,3495.4,3493.4,1.72]
[1718973038137,2.3158,3495.5,3493.8,1.72]
[1718973038336,2.3158,3495.5,3494.0,1.72]
[1718973038715,2.4667,3496.1,3494.2,1.72]
[1718973039010,0.05635698,3496.0,3494.4,1.72]
[1718973039241,0.05635698,3496.0,3494.6,1.72]
[1718973040419,0.05635698,3496.0,3494.4,3.0]
[1718973040744,0.05635698,3496.0,3494.3,2.12596]
[1718973040745,2.4101,3495.9,3494.3,2.12596]
[1718973041069,2.4101,3495.7,3494.0,3.0]
[1718973041357,0.05635698,3495.6,3493.9,0.400977]
[1718973041557,0.05635698,3495.6,3493.8,1.72]
[1718973043032,0.05635698,3495.6,3494.0,1.72]
[1718973043228,0.05635698,3495.6,3494.2,1.72]
[1718973043428,0.05635698,3495.6,3494.3,0.04820823]
[1718973043624,0.05635698,3495.6,3494.4,0.17682082]
[1718973043928,0.05635698,3495.6,3494.5,0.04820547]
[1718973045247,0.05635698,3495.6,3494.0,1.72]
[1718973047552,0.05635698,3495.6,3494.1,2.32723061]
[1718973047733,0.05635698,3495.6,3494.1,2.27]
[1718973047909,0.05635698,3495.6,3494.3,1.72]
[1718973050417,0.05635698,3495.6,3494.4,0.03972726]
[1718973052313,0.05635698,3495.6,3494.3,1.72]
[1718973052509,0.05635698,3495.6,3494.3,3.0]
[1718973052713,2.4853,3495.5,3494.3,3.0]
[1718973052935,2.4853,3495.5,3494.2,0.227]
[1718973052936,0.31052268,3495.4,3494.2,0.227]
[1718973053113,0.31052268,3495.4,3494.1,1.72]
[1718973053647,0.31052268,3495.4,3493.7,1.72]
[1718973053811,0.31052268,3495.4,3493.9,1.72]
[1718973054442,2.4853,3495.3,3493.9,1.72]
[1718973054633,0.05635698,3495.2,3493.9,1.72]
[1718973054820,0.05635698,3495.2,3493.7,1.72]
[1718973055613,2.4385,3495.1,3493.5,1.72]
[1718973055832,2.49485698,3495.0,3493.5,2.192]
[1718973056014,2.49485698,3495.0,3493.5,1.72]
[1718973056651,2.49485698,3495.0,3493.6,0.01635996]
[1718973057260,2.49485698,3495.0,3493.7,1.72]
[1718973058148,2.49485698,3495.0,3493.6,1.72]
[1718973058448,2.3352,3494.8,3493.6,1.72]
[1718973058656,0.05635698,3494.7,3493.6,1.72]
[1718973059018,0.05635698,3494.7,3493.3,1.72]
[1718973061053,0.05635698,3494.7,3493.2,1.72]
[1718973061254,2.3016,3494.6,3493.2,1.72]
[1718973061419,0.05635698,3494.5,3493.2,1.72]
[1718973062138,0.05635698,3494.5,3492.6,1.72]
[1718973062139,2.3016,3494.4,3492.6,1.72]
[1718973062330,2.06635698,3494.5,3492.6,1.72]
[1718973062331,2.3016,3494.2,3492.6,1.72]
[1718973062567,2.3016,3494.2,3492.0,2.2967]
[1718973062568,0.05635698,3494.1,3492.8,1.72]
[1718973062713,2.06635698,3494.1,3492.8,1.72]
[1718973063182,4.04274048,3494.0,3492.8,7.37]
[1718973063452,2.01,3493.3,3492.8,7.37]
[1718973063672,0.05635698,3493.2,3492.3,7.37]
[1718973068056,2.2708,3493.6,3492.3,7.37]
[1718973068223,2.2708,3493.6,3492.4,0.79426666]
[1718973068549,0.05635698,3493.5,3492.4,0.737]
[1718973068756,2.2965,3493.4,3492.3,7.37]
[1718973068920,0.05635698,3493.3,3492.4,0.05726422]
[1718973069126,2.2965,3493.4,3492.4,0.05726422]
[1718973069436,2.2965,3493.4,3492.4,4.77726422]
[1718973069750,2.2965,3493.4,3492.5,2.93472642]
[1718973069953,2.2965,3493.4,3492.6,0.05725502]
[1718973070275,2.3512,3494.1,3492.7,1.72]
[1718973070474,0.05635698,3494.0,3492.8,0.05725208]
[1718973070752,0.05635698,3494.0,3492.9,1.26972521]
[1718973071458,2.2806,3493.9,3492.7,7.37]
[1718973071764,2.2806,3493.6,3492.7,7.37]
[1718973071921,0.05635698,3493.5,3492.3,7.37]
[1718973072128,2.2806,3493.4,3492.3,7.37]
[1718973072317,0.29005268,3493.3,3492.3,7.37]
[1718973072530,0.05635698,3493.2,3492.3,7.37]
[1718973077390,2.2806,3493.4,3492.4,0.05726666]
[1718973077544,2.2806,3493.4,3492.5,1.72]
[1718973077746,2.2806,3493.4,3492.6,1.27198168]
[1718973078881,2.2539,3494.5,3492.7,1.72]
[1718973079041,0.05635698,3494.4,3492.9,7.37]
[1718973079243,0.05635698,3494.4,3493.0,0.97197104]
[1718973080647,0.05635698,3494.4,3493.0,0.91472494]
[1718973081241,0.05635698,3494.4,3492.9,7.37]
[1718973081468,4.18351307,3494.3,3492.9,7.37]
[1718973081684,2.4111,3494.1,3492.9,7.37]
[1718973081980,0.05635698,3494.0,3492.9,7.37]
[1718973082982,1.7724281,3493.9,3492.9,7.37]
[1718973083293,0.05635698,3493.8,3492.9,7.37]
[1718973083468,2.42695698,3493.7,3492.5,7.37]
[1718973087675,2.42695698,3493.7,3492.6,1.72]
[1718973087860,2.42695698,3493.7,3492.7,0.909]
[1718973088697,2.3696,3494.5,3492.7,2.629]
[1718973088912,0.05635698,3494.4,3493.0,1.72]
[1718973089069,0.05635698,3494.4,3493.2,1.72]
[1718973089816,2.01,3494.8,3493.2,4.1831]
[1718973090107,2.4208,3495.0,3493.4,1.72]
[1718973090313,2.4208,3495.5,3493.6,1.72]
[1718973090611,0.05635698,3495.4,3493.8,1.72]
[1718973090814,0.05635698,3495.4,3493.9,0.05722879]
[1718973090985,0.05635698,3495.4,3494.1,1.72]
[1718973091188,0.05635698,3495.4,3494.1,9.09]
[1718973092620,0.79976452,3496.8,3494.1,9.09]
[1718973092621,2.2823,3496.2,3494.3,4.00942]
[1718973092827,2.2823,3496.2,3494.2,6.1742]
[1718973092828,0.05635698,3496.1,3494.7,1.72]
[1718973094603,0.05635698,3496.1,3494.6,7.37]
[1718973094807,1.77295417,3496.0,3494.6,7.37]
[1718973095046,0.05635698,3495.9,3494.6,7.37]
[1718973095221,0.05635698,3495.9,3494.2,19.65]
[1718973095222,5.3027,3495.4,3494.2,19.65]
[1718973095397,1.82931115,3495.3,3493.9,7.37]
[1718973095612,2.679,3495.0,3493.9,7.37]
[1718973095817,4.82931115,3494.9,3493.9,7.37]
[1718973095997,4.23035417,3494.8,3493.9,7.37]
[1718973096326,4.82931115,3494.7,3493.3,7.37]
[1718973096623,2.679,3494.5,3493.3,7.37]
[1718973096798,1.82779789,3494.4,3493.3,7.37]
[1718973097126,1.77144091,3494.3,3493.3,7.37]
[1718973097288,0.05635698,3494.2,3493.3,7.37]
[1718973098180,0.05635698,3494.1,3493.3,7.37]
[1718973098421,0.05635698,3494.1,3493.4,0.737]
[1718973099313,2.4574,3494.6,3493.4,0.737]
[1718973099314,0.05635698,3494.3,3493.4,0.737]
[1718973099495,0.05635698,3494.2,3493.3,7.37]
[1718973100492,0.05635698,3494.4,3493.3,7.37]
[1718973100690,0.05635698,3494.4,3493.3,9.09]
[1718973100917,0.05635698,3494.4,3493.5,1.72]
[1718973101332,0.05635698,3494.4,3493.6,0.01523398]
[1718973101542,0.05635698,3494.4,3493.5,1.72]
[1718973101747,0.05635698,3494.5,3493.5,1.72]
[1718973101895,0.05635698,3495.0,3493.6,0.01987136]
[1718973102102,1.77191533,3494.9,3493.6,0.01987136]
[1718973102299,0.05635698,3494.8,3493.6,0.01987136]
[1718973102647,0.05635698,3494.7,3493.6,0.01987136]
[1718973102942,0.05635698,3494.7,3493.6,1.07147714]
[1718973103110,0.05635698,3494.7,3493.3,7.37]
[1718973103564,6.7590519,3494.6,3493.3,7.37]
[1718973103835,4.82790888,3494.5,3493.3,7.37]
[1718973104039,1.7715519,3494.4,3493.3,7.37]
[1718973104336,0.05635698,3494.3,3493.3,7.37]
[1718973104561,3.0,3494.5,3493.3,7.37]
[1718973104562,1.82790888,3494.2,3493.3,7.37]
[1718973104844,1.7715519,3494.1,3493.3,7.37]
[1718973105000,0.05635698,3494.0,3493.3,7.37]
[1718973105202,0.05635698,3494.0,3492.6,1.72]
[1718973105203,0.05635698,3494.0,3492.9,7.37]
[1718973105400,2.2762,3493.8,3492.9,7.37]
[1718973105640,0.05635698,3493.7,3492.9,7.37]
[1718973105991,0.28961268,3493.7,3492.9,7.37]
[1718973106196,1.77106547,3493.6,3492.9,7.37]
[1718973106400,0.05635698,3493.5,3492.9,7.37]
[1718973107231,0.05635698,3493.5,3492.9,7.32]
[1718973107847,0.05635698,3493.4,3492.9,7.32]
[1718973108802,0.05635698,3493.7,3492.9,7.32]
[1718973108999,2.00410947,3493.6,3492.9,7.32]
[1718973109222,0.05635698,3493.5,3492.9,7.32]
[1718973109439,0.05635698,3493.5,3492.5,21.32]
[1718973109728,2.2762,3493.8,3492.5,9.04]
[1718973109934,0.05635698,3493.7,3492.6,0.904]
[1718973110343,0.05635698,3493.7,3492.7,0.05144119]
[1718973110545,0.05635698,3493.7,3492.6,0.904]
[1718973111056,1.77098901,3493.6,3492.5,7.32]
[1718973111198,0.05635698,3493.5,3492.5,7.32]
[1718973111821,1.77076665,3493.4,3492.5,7.32]
[1718973112065,2.2762,3493.8,3492.5,7.32]
[1718973112066,0.05635698,3493.3,3492.5,7.32]
[1718973112201,0.05635698,3493.2,3492.5,7.32]
[1718973113151,0.05635698,3493.6,3492.5,7.32]
[1718973113328,1.77014382,3493.5,3492.5,7.32]
[1718973113513,0.05635698,3493.4,3492.5,7.32]
[1718973113912,1.76995154,3493.3,3492.5,7.32]
[1718973114119,0.05635698,3493.2,3492.5,7.32]
[1718973114554,0.05635698,3493.1,3492.5,7.32]
[1718973114714,2.2762,3493.8,3492.2,7.32]
[1718973114913,1.99723113,3493.7,3492.2,7.32]
[1718973115165,1.76961113,3493.6,3492.2,7.32]
[1718973115454,4.76961113,3493.6,3492.2,7.32]
[1718973115757,1.82596811,3493.5,3492.2,7.32]
[1718973116077,1.76961113,3493.4,3492.2,7.32]
[1718973116221,0.05635698,3493.3,3492.3,2.132]
[1718973116421,1.82583978,3493.2,3492.2,7.32]
[1718973116653,0.05635698,3493.2,3492.2,7.32]
[1718973117551,0.05635698,3493.6,3492.2,7.32]
[1718973117775,2.2525,3493.4,3492.2,7.32]
[1718973117948,0.05635698,3493.3,3492.2,7.32]
[1718973118291,0.05635698,3493.2,3492.2,7.32]
[1718973118453,1.76921038,3493.1,3492.2,7.32]
[1718973118654,0.05635698,3493.0,3492.2,7.32]
[1718973119537,0.05635698,3492.9,3492.2,7.32]
[1718973120496,4.12224695,3492.8,3491.6,7.32]
[1718973120658,0.05635698,3492.7,3491.6,7.32]
[1718973120863,1.76947615,3492.6,3491.6,7.32]
[1718973121092,0.05635698,3492.5,3491.6,7.32]
[1718973121309,2.3324,3492.4,3491.6,7.32]
[1718973121596,1.82576394,3492.3,3491.6,7.32]
[1718973121909,1.82576394,3492.2,3490.9,7.32]
[1718973122062,0.05635698,3492.2,3490.9,7.32]
[1718973125856,2.96256705,3493.6,3491.0,2.29159]
[1718973126063,4.25207342,3493.5,3491.6,7.32]
[1718973126263,2.31035698,3493.5,3491.6,7.32]
[1718973126484,1.76995,3493.4,3491.6,7.32]
[1718973126686,0.05635698,3493.3,3491.6,7.32]
[1718973126894,2.254,3493.5,3491.6,7.32]
[1718973126895,1.82630698,3493.2,3491.6,7.32]
[1718973127120,2.4917,3493.1,3491.7,0.732]
[1718973127412,2.679,3492.8,3491.6,7.32]
[1718973127696,2.4917,3492.6,3491.6,7.32]
[1718973127896,1.82527345,3492.7,3490.6,2.21639]
[1718973127897,2.4016,3492.4,3491.0,7.32]
[1718973128115,1.82527345,3492.3,3491.0,7.32]
[1718973128275,0.05635698,3492.2,3491.0,7.32]
[1718973128485,2.4671,3492.1,3491.0,7.32]
[1718973128674,0.30870268,3492.0,3491.0,7.32]
[1718973129785,3.30870268,3492.0,3491.0,7.32]
[1718973132614,5.2659,3491.9,3491.0,7.32]
[1718973132823,5.2659,3491.9,3490.6,7.32]
[1718973132824,0.05635698,3491.8,3490.6,7.32]
[1718973133128,2.57971725,3491.7,3490.6,7.32]
[1718973133617,2.2659,3491.5,3490.6,7.32]
[1718973133790,0.05635698,3491.4,3490.6,7.32]
[1718973144438,0.05635698,3491.4,3490.3,4.0144]
[1718973144647,0.05635698,3492.4,3490.7,9.17839]
[1718973144955,0.05635698,3492.4,3491.0,1.72]
[1718973145273,2.3984,3493.0,3491.3,1.72]
[1718973145406,0.05635698,3492.9,3491.5,1.72]
[1718973145605,0.05635698,3492.9,3491.5,9.04]
[1718973146550,0.05635698,3492.9,3491.5,7.32]
[1718973146760,2.3665,3492.7,3491.5,7.32]
[1718973146917,0.05635698,3492.6,3491.5,7.32]
[1718973150339,4.14721494,3492.5,3491.5,7.32]
[1718973150536,0.05635698,3492.4,3491.5,7.32]
[1718973150737,2.3804,3492.3,3491.5,7.32]
[1718973150975,3.0,3492.7,3490.3,2.4039]
[1718973150976,2.395,3492.1,3490.9,7.32]
[1718973151194,0.05635698,3492.0,3490.9,7.32]
[1718973156102,3.0,3492.7,3490.9,9.04]
[1718973156252,2.54975698,3492.6,3491.1,1.72]
[1718973156459,2.54975698,3492.6,3491.2,1.44302]
[1718973156763,4.68256705,3494.0,3491.2,1.44302]
[1718973156764,2.413,3493.1,3491.2,3.16302]
[1718973156977,0.05635698,3493.0,3491.6,1.72]
[1718973157261,0.05635698,3493.0,3491.7,2.624]
[1718973160587,0.05635698,3493.0,3491.8,2.447]
[1718973160788,0.05635698,3493.0,3491.9,1.72]
[1718973160972,0.05635698,3493.0,3491.9,4.72]
[1718973161365,2.413,3493.1,3491.9,4.72]
[1718973161571,2.413,3493.1,3492.0,2.5271]
[1718973161971,2.413,3493.1,3492.1,0.04622374]
[1718973162802,2.4195,3494.0,3492.1,0.04622374]
[1718973162965,1.82371474,3493.9,3492.5,1.72]
[1718973163174,0.05635698,3493.9,3492.6,0.904]
[1718973165178,1.76661402,3493.8,3492.6,0.904]
[1718973165405,0.05635698,3493.7,3492.6,0.904]
[1718973168207,0.05635698,3493.6,3492.6,0.904]
[1718973168509,0.05635698,3493.6,3492.7,3.7327]
[1718973168921,2.4195,3494.0,3492.7,3.7327]
[1718973169072,0.05635698,3493.9,3492.7,5.4527]
[1718973169277,0.05635698,3493.9,3492.8,2.60115743]
[1718973169801,2.3975,3494.4,3492.8,2.60115743]
[1718973169984,0.05635698,3494.3,3492.8,2.60115743]
[1718973170305,0.05635698,3494.2,3492.8,2.60115743]
[1718973170472,0.05635698,3494.2,3492.9,2.35338574]
[1718973170676,0.05635698,3494.2,3493.0,0.03588537]
[1718973172810,0.05635698,3494.2,3493.0,0.05724455]
[1718973173277,0.05635698,3494.2,3492.9,5.35338574]
[1718973174918,0.05635698,3494.2,3492.9,12.67338574]
[1718973175218,0.05635698,3494.7,3493.1,1.72]
[1718973176677,0.05635698,3494.7,3493.2,2.4953]
[1718973176879,0.05635698,3494.7,3493.2,7.2153]
[1718973177710,2.4068,3494.8,3493.2,7.2153]
[1718973177936,2.4068,3494.8,3493.3,0.89404356]
[1718973178124,2.4068,3494.8,3493.3,3.89404356]
[1718973179300,6.018,3495.6,3493.3,3.89404356]
[1718973179301,2.3077,3495.5,3493.3,3.89404356]
[1718973179619,2.56,3495.4,3493.7,7.32]
[1718973179915,3.0,3495.3,3493.8,0.732]
[1718973180077,0.05635698,3495.2,3493.8,0.732]
[1718973181031,0.05635698,3495.2,3493.9,0.02276088]
[1718973181211,0.05635698,3495.2,3493.9,2.28876088]
[1718973181924,0.05635698,3495.2,3493.9,2.266]
[1718973182215,0.05635698,3495.2,3493.9,3.4988]
[1718973182637,0.05635698,3495.1,3493.9,5.2188]
[1718973183292,0.05635698,3495.1,3493.9,3.4988]
[1718973183483,0.05635698,3495.1,3493.7,7.32]
[1718973183686,2.01,3494.6,3493.7,7.32]
[1718973183941,0.05635698,3494.5,3493.3,19.6]
[1718973184221,0.2066357,3494.4,3493.3,19.6]
[1718973184423,0.05635698,3494.3,3493.3,19.6]
[1718973184598,0.05635698,3494.2,3493.3,19.6]
[1718973186853,0.05635698,3494.2,3493.3,7.32]
[1718973187064,2.3885,3495.5,3493.5,2.3102]
[1718973187331,2.3885,3495.5,3493.8,9.04]
[1718973187332,0.05635698,3495.4,3493.8,9.04]
[1718973187532,0.29520698,3495.4,3493.9,0.96471546]
[1718973187735,0.05635698,3495.4,3493.9,0.96471546]
[1718973187896,0.05635698,3495.4,3494.0,2.2916]
[1718973188844,0.05635698,3495.4,3494.1,0.05714944]
[1718973191423,2.4292,3495.9,3494.1,1.77714944]
[1718973191622,0.05635698,3495.8,3494.2,0.80334649]
[1718973191829,0.05635698,3495.7,3494.3,7.37715099]
[1718973193945,0.05635698,3495.7,3494.3,9.09715099]
[1718973194150,2.46765698,3496.3,3494.5,1.72]
[1718973194365,2.46765698,3496.3,3494.6,0.05714608]
[1718973194366,0.05635698,3496.2,3494.6,0.05714608]
[1718973194512,0.05635698,3496.2,3494.8,1.72]
[1718973194851,0.05635698,3496.6,3495.0,4.2145]
[1718973195012,0.05635698,3496.6,3495.1,7.32]
[1718973195342,0.2467657,3496.5,3495.1,8.61942146]
[1718973195507,0.05635698,3496.4,3495.1,8.61942146]
[1718973195710,0.05635698,3496.4,3495.1,10.33942146]
[1718973196348,0.05635698,3497.0,3495.1,10.33942146]
[1718973196551,0.29165698,3497.0,3495.2,1.33839215]
[1718973196927,0.29165698,3497.0,3495.1,9.04]
[1718973196928,0.29165698,3497.0,3495.1,7.32]
[1718973197132,5.97065698,3497.0,3495.1,7.32]
[1718973197446,5.33656092,3496.9,3495.1,7.32]
[1718973197646,3.05635698,3496.8,3495.1,7.32]
[1718973197853,0.05635698,3496.7,3495.1,7.32]
[1718973199246,0.05635698,3496.7,3495.1,9.04]
[1718973199653,0.05635698,3496.6,3495.1,9.04]
[1718973200367,0.05635698,3496.6,3495.2,4.0628]
[1718973200563,2.353,3497.1,3495.3,0.05592436]
[1718973200564,0.05635698,3497.0,3495.3,0.05592436]
[1718973200772,0.2409357,3496.9,3495.5,7.32]
[1718973200974,0.05635698,3496.8,3495.6,0.05591956]
[1718973201268,0.05635698,3496.7,3495.7,2.4889]
[1718973201564,0.05635698,3496.7,3495.8,0.05591636]
[1718973202067,0.05635698,3496.7,3495.7,2.4889]
[1718973202421,0.05635698,3496.7,3495.5,7.32]
[1718973202625,0.38608625,3496.7,3495.5,7.32]
[1718973204673,3.0,3497.0,3495.5,7.32]
[1718973204674,0.05635698,3496.6,3495.5,7.32]
[1718973204869,0.05635698,3496.6,3495.6,0.04270055]
[1718973205076,2.353,3497.1,3495.6,0.04270055]
[1718973205077,0.05635698,3497.0,3495.6,0.04270055]
[1718973205376,0.05635698,3497.0,3495.5,7.32]
[1718973205598,0.2409357,3496.9,3495.6,0.904]
[1718973205878,0.05635698,3496.8,3495.6,0.904]
[1718973206037,0.05635698,3496.7,3495.6,0.904]
[1718973206245,0.05635698,3496.7,3495.7,0.8224]
[1718973206965,0.05635698,3497.0,3495.7,0.8224]
[1718973207176,0.05635698,3497.0,3495.9,2.3878]
[1718973207342,0.05635698,3497.0,3496.0,0.34368315]
[1718973207966,0.05635698,3497.4,3496.0,0.34368315]
[1718973208216,0.05635698,3497.4,3496.0,7.66368315]
[1718973208600,0.05635698,3497.4,3496.1,0.05405528]
[1718973208824,0.2497057,3497.3,3496.1,1.06234281]
[1718973209030,0.05635698,3497.2,3496.1,1.06234281]
[1718973209519,0.05635698,3497.2,3496.1,1.00828753]
[1718973211115,0.05635698,3497.2,3496.0,7.64102]
[1718973218808,2.2572,3497.1,3496.0,7.32]
[1718973219129,3.8305077,3497.0,3496.0,7.32]
[1718973219309,2.007,3496.6,3496.0,7.32]
[1718973219509,2.007,3496.6,3495.0,2.3249]
[1718973219510,1.8235077,3496.5,3495.4,7.32]